Cogmind - Beta 17.1 @@@ ROGUE MODE // 2026.09.13 @ 12:04:42 Player: Somberlain Result: Destroyed by H-55 Commando with Assault Rifle Performance ------------- Evolutions (3) 1500 Regions Visited (6) 1200 Robots Destroyed (36) 180 Value Destroyed (952) 952 Prototype IDs (49) 980 Alien Tech Used (0) 0 Bonus (312) 312 TOTAL SCORE: 5124 Bonus ------- Follower Combat Kills 60 Aligned with FarCom 300 Friendly Fire -48 Cogmind --------- Core Integrity 0/700 Matter 284/300 Energy 987/1600 System Corruption 9% Temperature Cool (0) Movement Core (300) Ox5 Location -7/Factory Parts ------- > --- POWER (1) -------- (None) > --- PROPULSION (3) --- (None) > --- UTILITY (6) ------ Medium Storage Unit Superbattery Improved Targeting Computer System Shield > --- WEAPON (3) ------- Powered Hammer > --- INVENTORY (10) --- Improved Heat Sink Target Analyzer Armor Integrity Analyzer Gatling Laser Remote Datajack Peak State ------------ > --- POWER ------------ Light Nuclear Core > --- PROPULSION ------- Carbon-fiber Leg Carbon-fiber Leg Improved Titanium Leg > --- UTILITY ---------- Coolant Injector Medium Storage Unit Improved Targeting Computer Weapon Cycler Hardened Medium Armor Plating System Shield > --- WEAPON ----------- Gatling Laser Gatling Laser Improved Spread Laser > --- INVENTORY -------- Improved Titanium Leg Improved Titanium Leg Improved Titanium Leg Improved Heat Sink Superbattery Target Analyzer Armor Integrity Analyzer Gatling Laser Gatling Laser Mining Laser [Rating: 47] Favorites ----------- Power Light Nuclear Core Engine Ion Engine Power Core Light Nuclear Core Propulsion Carbon-fiber Leg Leg Carbon-fiber Leg Flight Unit Flight Unit Utility Medium Storage Unit Device Weapon Cycler Storage Medium Storage Unit Processor Improved Targeting Computer Hackware System Shield Protection Hardened Medium Armor Plating Weapon Gatling Laser Energy Gun Gatling Laser Ballistic Gun Assault Rifle Special Weapon Mining Laser Impact Weapon Powered Hammer Special Melee Weapon Datajack Build | -11 -10 -10 -10 -9 -8 -7 ------- Run | Yrd Mat Min Exi Min Mat Fac Slots Evolved 6 | . . . . . 4 2 Power . | . . . . . . . Propulsion 1 | . . . . . . 1 Utility 4 | . . . . . 4 . Weapon 1 | . . . . . . 1 Parts Attached 48 | 6 2 4 . 1 20 15 Power 4 | 1 . 1 . 1 . 1 Engine 1 | 1 . . . . . . Core 3 | . . 1 . 1 . 1 Reactor . | . . . . . . . Propulsion 13 | 2 . 2 . . 4 5 Treads . | . . . . . . . Leg 11 | 2 . . . . 4 5 Wheel . | . . . . . . . Hover . | . . . . . . . Flight 2 | . . 2 . . . . Utility 17 | 1 1 . . . 11 4 Device 4 | . . . . . 3 1 Storage 5 | 1 . . . . 3 1 Processor 5 | . 1 . . . 4 . Hackware 2 | . . . . . . 2 Protection 1 | . . . . . 1 . Artifact . | . . . . . . . Weapon 14 | 2 1 1 . . 5 5 Energy Gun 6 | . . . . . 3 3 Energy Cannon . | . . . . . . . Ballistic Gun 3 | 2 . . . . 1 . Ballistic Cannon . | . . . . . . . Launcher . | . . . . . . . Special Weapon 1 | . 1 . . . . . Impact Weapon 2 | . . . . . . 2 Slashing Weapon . | . . . . . . . Piercing Weapon . | . . . . . . . Special Melee Weapon 2 | . . 1 . . 1 . Unidentified Prototypes 1 | . . . . . . 1 Parts Lost 16 | . . . . 1 . 15 Power 1 | . . . . . . 1 Propulsion 5 | . . . . . . 5 Utility 4 | . . . . . . 4 Weapon 6 | . . . . 1 . 5 Highest Loss Streak 5 | . . . . 1 . 5 To Critical Strikes . | . . . . . . . Average Backups 7 | . 2 3 5 5 6 9 Power . | . . . . . . . Propulsion 1 | . . . 1 1 1 2 Utility 2 | . 1 1 1 2 1 3 Weapon 2 | . . 1 2 2 3 1 Tool/Special . | . . . . . . . Unused Backups 9 | . . . . . 3 6 Power . | . . . . . . . Propulsion 3 | . . . . . 2 1 Utility 4 | . . . . . 1 3 Weapon 1 | . . . . . . 1 Tool/Special 1 | . . . . . . 1 Average Slot Usage (%) 90 | . 86 89 85 82 88 93 Engine 2 | . 14 10 . . . . Core 6 | . . 3 14 14 9 5 Leg 17 | . 28 9 . . 12 21 Flight 4 | . . 18 28 28 5 . Device 8 | . . . . . 8 13 Storage 7 | . 14 4 . . 7 8 Processor 12 | . 1 14 14 14 27 7 Hackware 4 | . . . . . . 8 Protection 2 | . . . . . 1 4 Energy Gun 12 | . . . . . 10 19 Ballistic Gun 6 | . 25 18 14 14 3 . Special Melee Weapon 1 | . . 9 14 11 . . Peak Build Rating 47 | 6 7 8 9 9 36 47 Average Rating 30 | 4 6 6 8 8 27 43 On Entrance 10 | . 6 7 8 9 8 36 Avg Prop Armor Cover (%) 12 | . . . . . . 12 Naked Turns . | . . . . . . . Heaviest Build 37 | 13 13 13 8 8 31 37 Greatest Support 59 | 20 20 20 8 8 43 59 Greatest Overweight (x) 6 | . . 1 . . . 6 Average Overweight (x) . | . . . . . . . Largest Inventory Capacity 10 | 8 8 8 5 5 10 10 Average Capacity 8 | 6 8 5 5 5 8 10 Most Carried 10 | . 3 5 5 5 10 10 Average Carried 7 | . 2 3 5 5 7 9 Final Capacity 10 | 8 8 5 5 5 10 10 Final Carried 10 | . 2 5 5 5 10 5 Class Distribution -------------------- 57% | Mutant 28% | Scavenger-Gunner 9% | Hacker-Gunner 4% | Scavenger-Mutant Dominant Class ---------------- Mutant | -10/Materials Mutant | -10/Mines Mutant | -10/Exiles Mutant | -9/Mines Mutant | -8/Materials Scavenger-Gunner | -7/Factory Resources | -11 -10 -10 -10 -9 -8 -7 ----------- Run | Yrd Mat Min Exi Min Mat Fac Matter Collected 838 | 235 89 75 . 48 232 159 Remotely . | . . . . . . . Salvage Created 1400 | . 193 . . . 207 1000 Parts 78 | . 11 . . . 13 54 Haulers Intercepted 4 | . 2 . . . . 2 Recyclers Shooed 1 | . . . . . . 1 Parts Field Recycled . | . . . . . . . Retrieved Matter . | . . . . . . . Parts Self-Destructed . | . . . . . . . Prevented . | . . . . . . . Parts Restored . | . . . . . . . Kills | -11 -10 -10 -10 -9 -8 -7 ------- Run | Yrd Mat Min Exi Min Mat Fac Combat Hostiles Destroyed 18 | . 3 . . . 4 11 Melee 1 | . . . . . . 1 Guns 17 | . 3 . . . 4 10 Classes Destroyed 14 | . 2 . . . 4 8 Worker 2 | . . . . . . 2 Builder 3 | . . . . . . 3 Tunneler 2 | . . . . . . 2 Hauler 4 | . 2 . . . . 2 Recycler 4 | . . . . . . 4 Operator 1 | . . . . . 1 . Watcher 1 | . . . . . 1 . Swarmer 1 | . . . . . . 1 Grunt 9 | . 3 . . . 1 5 Protector 2 | . . . . . 1 1 Sentry 2 | . . . . . 2 . Specialist 1 | . . . . . . 1 Hunter 1 | . . . . . . 1 Programmer 3 | . . . . . . 3 Best Kill Streak 6 | . 1 . . . 1 6 Combat Bots Only 3 | . 1 . . . 1 3 Max Kills in Single Turn 2 | . 1 . . . 1 2 Gunslinging . | . . . . . . . Exploded . | . . . . . . . Melee 1 | . . . . . . 1 Uniques/NPCs Destroyed . | . . . . . . . Combat | -11 -10 -10 -10 -9 -8 -7 -------- Run | Yrd Mat Min Exi Min Mat Fac Hostile Shots Fired 360 | . 27 . . 6 4 323 Missed 132 | . 9 . . 3 2 118 Hits 228 | . 18 . . 3 2 205 Projectile 228 | . 18 . . 3 2 205 Critical Strikes 7 | . . . . . . 7 Part Disruptions 1 | . . . . . . 1 Damage Taken 2937 | . 199 . . 33 29 2676 Core 725 | . 11 . . 10 . 704 Absorbed by Shields 53 | . . . . . . 53 Core Remaining (%) 97 | 100 . . . 91 100 . Volleys Fired 73 | . 28 . . 1 16 28 Largest 3 | . 2 . . 1 2 3 Hottest 240 | . 100 . . 20 160 240 Shots Fired 164 | . 54 . . 1 31 78 Gun 158 | . 52 . . 1 30 75 Cannon . | . . . . . . . Launcher . | . . . . . . . Special 6 | . 2 . . . 1 3 Kinetic 56 | . 52 . . 1 3 . Thermal 108 | . 2 . . . 28 78 Explosive . | . . . . . . . Electromagnetic . | . . . . . . . Robot Hit Streak 14 | . 12 . . . 14 10 Robot Miss Streak 5 | . 3 . . 1 5 4 Penetration Max . | . . . . . . . Secondary Targets 2 | . . . . . 1 1 Max Gunslinging Chain 1 | . . . . . 1 1 Shots Hit Robots 128 | . 39 . 9 . 20 60 Core Hits 78 | . 10 . . . 17 51 Critical Kills . | . . . . . . . Critical Parts Destroyed 1 | . . . . . . 1 Critical Strikes 1 | . . . . . . 1 Smash 1 | . . . . . . 1 Melee Attacks 16 | . . . 9 . . 7 Impact 6 | . . . . . . 6 Slashing . | . . . . . . . Piercing . | . . . . . . . Sneak Attacks 8 | . . . 7 . . 1 Combat Hostiles . | . . . . . . . Follow-up Attacks . | . . . . . . . Damage Inflicted 2435 | . 403 . . . 395 1637 Guns 2260 | . 403 . . . 395 1462 Cannons . | . . . . . . . Explosions . | . . . . . . . Melee 141 | . . . . . . 141 Ramming 34 | . . . . . . 34 Kinetic 457 | . 403 . . . 54 . Thermal 1803 | . . . . . 341 1462 Explosive . | . . . . . . . Electromagnetic . | . . . . . . . Impact 141 | . . . . . . 141 Slashing . | . . . . . . . Piercing . | . . . . . . . Highest Corruption 9 | . . . . . . 9 Average Corruption 3 | . . . . . . 3 Corruption Purged . | . . . . . . . Corruption Blocked . | . . . . . . . Effects 11 | . . . . . . 11 Message Errors 1 | . . . . . . 1 Matter Fused 2 | . . . . . . 2 Heat Flow Errors 3 | . . . . . . 3 Energy Discharges 1 | . . . . . . 1 Data Loss (minor) 3 | . . . . . . 3 Misfires 1 | . . . . . . 1 Overload Shots . | . . . . . . . Overflow Damage 58 | . . . . . . 58 Projectiles . | . . . . . . . Explosions . | . . . . . . . Melee 58 | . . . . . . 58 Knockbacks 1 | . . . . . . 1 Impact 1 | . . . . . . 1 Kinetic . | . . . . . . . Secondary . | . . . . . . . Self-Inflicted Damage . | . . . . . . . Shots . | . . . . . . . Rammed . | . . . . . . . Targets Rammed 8 | . . . . . . 8 Kicked 8 | . . . . . . 8 Crushed . | . . . . . . . Highest Temperature 280 | . 46 . . . 280 214 Average Temperature 89 | . 13 . . . 90 99 Received Heat Transfer 439 | . 108 . . 18 9 304 Siege Activations . | . . . . . . . Martial Activations . | . . . . . . . Shielding Activations . | . . . . . . . Robots Disrupted . | . . . . . . . Combat Hostiles . | . . . . . . . Robots Corrupted . | . . . . . . . Combat Hostiles . | . . . . . . . Parts Fried . | . . . . . . . Impact Corruptions 1 | . . . . . . 1 Robots Melted . | . . . . . . . Combat Hostiles . | . . . . . . . Parts Melted 10 | . . . . . . 10 Heat Transferred 3861 | . . . . . 745 3116 Parts Sabotaged . | . . . . . . . Parts Stolen . | . . . . . . . Parts Stripped . | . . . . . . . Power Chain Reactions . | . . . . . . . Alert | -11 -10 -10 -10 -9 -8 -7 ------- Run | Yrd Mat Min Exi Min Mat Fac Maximum Alert Level . | . . . . . . . Low Security (%) 100 | 100 100 100 . 100 100 100 Level 1 . | . . . . . . . Level 2 . | . . . . . . . Level 3 . | . . . . . . . Level 4 . | . . . . . . . Level 5 . | . . . . . . . High Security . | . . . . . . . Max Security . | . . . . . . . Peak Influence 104 | . 30 20 . 46 50 104 Initial 9 | . . . . . 9 7 Average 15 | . 6 4 . 9 6 23 Influence Increases 921 | . 114 50 . 86 137 534 Destroy 0b10 Robot/C 400 | . 60 20 . 40 60 220 Destroy 0b10 Robot/NC 90 | . 10 . . . 15 65 Destroy Leader 110 | . 14 . . 10 32 54 Allied During Kill 6 | . . . . 6 . . Disable Machine 30 | . 15 . . . 15 . Partial Spotted 15 | . . . . . 15 . Lose Combat Pursuer 270 | . 15 30 . 30 . 195 Influence Decreases 865 | . 114 50 . 60 147 494 Entered New Map 26 | . . . . . 17 9 Time Decay 632 | . 114 50 . 50 130 288 Lost Part 160 | . . . . 10 . 150 Purge Threat 47 | . . . . . . 47 Squads Dispatched 19 | . 2 . . . 4 13 Investigation 1 | . 1 . . . . . Extermination 5 | . . . . . . 5 Reinforcement 10 | . 1 . . . 2 7 Assault 2 | . . . . . 2 . Garrison 1 | . . . . . . 1 Intercept . | . . . . . . . Searches Triggered . | . . . . . . . Construction Impeded 1 | . . . . . . 1 Haulers Reinforced 1 | . . . . . . 1 Active Scanning Responses . | . . . . . . . Cargo Convoy Interrupts 1 | . . . . . . 1 Stealth | -11 -10 -10 -10 -9 -8 -7 --------- Run | Yrd Mat Min Exi Min Mat Fac Distress Signals 4 | . 1 . . . 2 1 Communications Jammed . | . . . . . . . Distress Signals . | . . . . . . . Times Spotted 64 | . 7 3 . 4 11 39 Peak Tracking Total 9 | . 3 4 . 2 4 9 Tactical Retreats 9 | . 1 2 . 1 . 5 Traps | -11 -10 -10 -10 -9 -8 -7 ------- Run | Yrd Mat Min Exi Min Mat Fac Traps Triggered 6 | . 1 . . . . 5 Indirectly . | . . . . . . . Trap Hack Attempts . | . . . . . . . Triggered . | . . . . . . . Disarmed . | . . . . . . . Reprogrammed . | . . . . . . . Reused . | . . . . . . . Traps Extracted . | . . . . . . . Installed . | . . . . . . . Triggered . | . . . . . . . Machines | -11 -10 -10 -10 -9 -8 -7 ---------- Run | Yrd Mat Min Exi Min Mat Fac Machines Disabled 2 | . 1 . . . 1 . Max in Single Turn 1 | . 1 . . . 1 . Garrison Access 1 | . . . . . 1 . Machines Repaired . | . . . . . . . Machines Dismantled . | . . . . . . . Machines Sabotaged . | . . . . . . . Overloaded Fab Kills . | . . . . . . . Hacking | -11 -10 -10 -10 -9 -8 -7 --------- Run | Yrd Mat Min Exi Min Mat Fac Machines Accessed 7 | . 1 . 2 . 1 3 Terminals 4 | . 1 . . . . 3 Fabricators . | . . . . . . . Repair Stations . | . . . . . . . Recycling Units . | . . . . . . . Scanalyzers 1 | . . . . . 1 . Garrison Access . | . . . . . . . Total Hacks 15 | . 2 . 2 . 3 8 Successful 6 | . . . 2 . 3 1 Failed 9 | . 2 . . . . 7 Catastrophic 2 | . . . . . . 2 Database Lockouts . | . . . . . . . Manual 6 | . 2 . 1 . . 3 Terminals 10 | . 2 . . . . 8 Fabricators . | . . . . . . . Repair Stations . | . . . . . . . Recycling Units . | . . . . . . . Scanalyzers 3 | . . . . . 3 . Garrison Access . | . . . . . . . Terminal Hacks 3 | . . . 2 . . 1 Record 1 | . . . 1 . . . Unreport Threat 1 | . . . . . . 1 Proto ID Catalog 1 | . . . 1 . . . Fabricator Hacks . | . . . . . . . Repair Station Hacks . | . . . . . . . Recycling Unit Hacks . | . . . . . . . Scanalyzer 3 | . . . . . 3 . Retrieve Study 3 | . . . . . 3 . Garrison Access Hacks . | . . . . . . . Unauthorized Hacks . | . . . . . . . Terminals . | . . . . . . . Fabricators . | . . . . . . . Repair Stations . | . . . . . . . Recycling Units . | . . . . . . . Scanalyzers . | . . . . . . . Garrison Access . | . . . . . . . Data Cores Recovered . | . . . . . . . Used . | . . . . . . . Hacking Detections 5 | . 1 . . . 1 3 Full Trace Events . | . . . . . . . Feedback Events . | . . . . . . . Feedback Blocked . | . . . . . . . Robot Schematics Acquired . | . . . . . . . Robots Built . | . . . . . . . Authchips . | . . . . . . . Time . | . . . . . . . Total Robot Build Rating . | . . . . . . . Part Schematics Acquired . | . . . . . . . Parts Built . | . . . . . . . Authchips . | . . . . . . . Time . | . . . . . . . Total Part Build Rating . | . . . . . . . Part Studies Acquired 3 | . . . . . 3 . Parts Repaired . | . . . . . . . Time . | . . . . . . . Parts Recycled . | . . . . . . . Recycled Matter . | . . . . . . . Retrieved Matter . | . . . . . . . Retrieved Components . | . . . . . . . Parts Scanalyzed . | . . . . . . . Part Schematics Acquired . | . . . . . . . Parts Damaged . | . . . . . . . Bothacking | -11 -10 -10 -10 -9 -8 -7 ------------ Run | Yrd Mat Min Exi Min Mat Fac Used RIF Installer . | . . . . . . . Robots Hacked 6 | . . . 5 . . 1 Non-combat 3 | . . . 3 . . . Combat 3 | . . . 2 . . 1 Robot Hacks Applied 6 | . . . 5 . . 1 parse_system 6 | . . . 5 . . 1 Relay Couplers Released 2 | . . . . . 2 . Machine Destruction 2 | . . . . . 2 . Fabnet Peak Effective % . | . . . . . . . Robots Rewired 1 | . . . . . . 1 Allies Hacked . | . . . . . . . Hacks Repelled . | . . . . . . . Allies | -11 -10 -10 -10 -9 -8 -7 -------- Run | Yrd Mat Min Exi Min Mat Fac Total Allies 6 | . . 3 . 2 . 1 Largest Group 3 | . . 3 . 2 . 1 Highest-Rated Group 45 | . . 40 . 45 . 40 Highest-Rated Ally 40 | . . 16 . 31 . 40 Total Orders . | . . . . . . . Ally Attacks 12 | . . 9 . 3 . . Total Damage 104 | . . 40 . 64 . . Kills 3 | . . 1 . 2 . . Allies Corrupted . | . . . . . . . Allies Melted . | . . . . . . . Intel | -11 -10 -10 -10 -9 -8 -7 ------- Run | Yrd Mat Min Exi Min Mat Fac Active Infowar (turns) 4 | . . . . . 4 . Sensors 4 | . . . . . 4 . Robot Analysis Total . | . . . . . . . Derelict Logs Recovered 4 | . . 1 . 3 . . Drone Launches . | . . . . . . . Drone Recoveries . | . . . . . . . Exploration | -11 -10 -10 -10 -9 -8 -7 ------------- Run | Yrd Mat Min Exi Min Mat Fac Turns Passed 3757 | 68 452 161 128 229 818 1901 Spaces Moved 3158 | 53 287 241 302 363 684 1228 Core 8 | 6 . . . . . 2 Treads . | . . . . . . . Legs 1928 | 47 287 32 . . 336 1226 Wheels . | . . . . . . . Hover . | . . . . . . . Flight 1222 | . . 209 302 363 348 . Fastest Speed 37 | 50 120 37 37 37 37 110 Average Speed 85 | 112 120 48 37 37 76 115 Slowest Speed 350 | 120 120 120 37 37 130 350 Overloaded Moves . | . . . . . . . Propulsion Burnouts . | . . . . . . . Robots Hopped 5 | . . 2 . 3 . . Potential Cave-ins . | . . . . . . . Cave-ins Triggered . | . . . . . . . Exploration Rate (%) 44 | 3 44 46 65 80 41 35 Regions Visited 6 Branch Regions 3 Pre-discovered Areas 1 | . . 1 . . . . Known Exits Taken 5 | . 1 1 1 1 1 . Unknown Exits Taken 1 | 1 . . . . . . Scrap Searched 4 | . . 2 . 2 . . Spaces Dug . | . . . . . . . Terrain Destroyed . | . . . . . . . Melee . | . . . . . . . Projectile . | . . . . . . . AOE . | . . . . . . . Terrain Rammed . | . . . . . . . Walls Destroyed . | . . . . . . . Machines Disabled . | . . . . . . . Actions | -11 -10 -10 -10 -9 -8 -7 --------- Run | Yrd Mat Min Exi Min Mat Fac Total 4026 | 58 341 283 313 453 941 1637 Wait 659 | . 21 34 . 91 187 326 Move 3142 | 52 286 236 301 356 683 1228 Hop 5 | . . 2 . 3 . . Pick Up 23 | . 3 2 1 . 12 5 Fast Attach 29 | 6 . 2 . . 16 5 Attach 8 | . 1 . . . . 7 Detach 10 | . . 2 . . 7 1 Swap 20 | . 2 2 . 1 6 9 Drop 27 | . . 3 1 1 14 8 Fire 73 | . 28 . . 1 16 28 Melee 16 | . . . 9 . . 7 Ram . | . . . . . . . Kick 8 | . . . . . . 8 Crush . | . . . . . . . Escape Stasis . | . . . . . . . Rewire 6 | . . . 1 . . 5 Trap . | . . . . . . . Miscellaneous . | . . . . . . . Route ------- -11/Scrapyard -10/Materials (discovered 3 exits: *Mat / *Min x2) -10/Mines (discovered 2 exits: *Mat / *Exi) -10/Exiles (discovered 2 exits: *Min x2) -9/Mines (discovered 2 exits: *Mat x2) -8/Materials (discovered 2 exits: *Fac x2) -7/Factory (discovered 1 exit: [*Low]) History --------- Turn | Location | Event 4 | -11/Scrapyard | Discovered new exit (range 16) 69 | -11/Scrapyard | Entered Materials 125 | -10/Materials | Discovered new exit (range 14) 145 | -10/Materials | Met 8R-AWN 234 | -10/Materials | Discovered new exit (range 9) 314 | -10/Materials | Build established: Mutant 466 | -10/Materials | Discovered new exit (range 9) 477 | -10/Materials | Identified exit to Materials 520 | -10/Materials | Identified exit to Mines 521 | -10/Materials | Entered Mines 523 | -10/Mines | Followed 8R-AWN into the Mines 534 | -10/Mines | Joined a pair of Derelicts in attacking an 0b10 outpost 583 | -10/Mines | Found a Scrap Suit stashed away for nefarious purposes 590 | -10/Mines | Discovered exit to Materials (range 16) 596 | -10/Mines | Assisted by bots powering up and referring to "LRC-V3" 614 | -10/Mines | Discovered new exit (range 5) 616 | -10/Mines | Identified exit to Exiles 682 | -10/Mines | Entered Exiles 688 | -10/Exiles | Discovered new exit (range 15) 696 | -10/Exiles | Welcomed by 8R-AWN 708 | -10/Exiles | Met EX-HEX 738 | -10/Exiles | Met EX-BIN 745 | -10/Exiles | Aligned with FarCom system 745 | -10/Exiles | Given EX-Vault access code 754 | -10/Exiles | Opened EX-Vault 767 | -10/Exiles | Found Superbattery 775 | -10/Exiles | Warned to stay clear of 0b10 Research branches 785 | -10/Exiles | Met EX-DEC 802 | -10/Exiles | Discovered new exit (range 14) 807 | -10/Exiles | Identified exit to Mines 810 | -10/Exiles | Left Exiles lab with Superbattery 810 | -10/Exiles | Entered Mines 926 | -9/Mines | Found DCF Scrap (14 items) 1011 | -9/Mines | Learned Materials emergency access door positions 1013 | -9/Mines | Discovered new exit (range 5) 1015 | -9/Mines | Identified exit to Materials 1017 | -9/Mines | Discovered exit to Materials (range 14) 1039 | -9/Mines | Entered Materials 1039 | -8/Materials | Evolved 4 slots: Utility x4 1040 | -8/Materials | Identified exit to Factory 1771 | -8/Materials | Met 7R-MNS 1857 | -8/Materials | Entered Factory 1857 | -7/Factory | Evolved 2 slots: Propulsion x1, Weapon x1 1858 | -7/Factory | Caught up to 7R-MNS 2140 | -7/Factory | Garrison activated, responded to threat 2441 | -7/Factory | Build established: Scavenger-Gunner 2551 | -7/Factory | Discovered new exit (range 9) 3326 | -7/Factory | Build established: Hacker-Gunner 3335 | -7/Factory | Cargo convoy interrupted 3454 | -7/Factory | Lost 5 parts (1p2u2w) 3538 | -7/Factory | Core integrity fell below 50% 3547 | -7/Factory | Lost 3 parts (2n1w) 3704 | -7/Factory | Build established: Mutant 3752 | -7/Factory | Core integrity fell below 20% 3758 | -7/Factory | Destroyed by H-55 Commando with Assault Rifle Last Messages --------------- 03744_ Penetrated by Slug. 03746_ X-67 Chaingunner knocked back. 03747_ Penetrated by Slug. 03750_ System corrupted: Heat flow error (+248). 03751_ Penetrated by Slug. 03751_ Weapon Cycler destroyed. 03753_ Slug penetrates H-55 Commando. 03755_ M-28 Smith repairs P-60 Hacker. 03755_ X-67 Chaingunner suffers critical hit (Smash). 03755_ Destroyed Hvy. Machine Gun. 03755_ X-67 Chaingunner system corrupted by crushing effect. 03755_ X-67 Chaingunner destroyed. 03755_ Penetrated by Slug. 03755_ M-28 Smith suffers critical hit (Destroy). 03755_ M-28 Smith destroyed. 03757_ Powered Hammer destroyed. 03758_ R-06 Scavenger collects Kinecellerator. Map ----- +----------------------------------------------------+ | ########?????" """" # #?????? | | ?????????????" """" + < #?????? | | ?????????????" """" # % #?????? | | ???????????? # ###### ##?????? | | ??????????? ?### #### #????# #??????? | | ??????????? ???# #??#########????# #??????? | | ?????????? ????# #???????????????# #??????? | | ?????????##############+########????????# T#?????? | | ??????????????????# #????????# #?????? | | ??????????????????# #????????# ##?????? | | ??????????????????# !! #????????# #??????? | | ??????????????????# !* #????????# #??????? | | ??????????????????# #????????# #??????? | | ??????????????????# %##???????# #??????? | | ??????????????????# """ #???????# #??????? | | ??????????????????#"" """ ##???????? ???????? | | ??????????????????#"F """ #????????? ???????? | | ??????????????????#""" #????????? ???????? | | ??????????????????#""" u ! #????????? ???????? | | ??????????????????# u #????????? ???????? | | ???????##################/######????????? ???????? | | ?????? #???###?????+???????? | | ?????? #??? ????????????? | | ????? #??" " "????????????? | | ????? #??" " "?????###??##? | | ????? @p #? " " " ????# """ | | ??????????##############% * #? " " " ????# "R" | | ??????????# ??#h%r # " " " ????# " " | | ??????????# # h # " " " "???# [ | | ??????????# ] + u u " " " "???# | | ??????????# # h # " " " "???# """ | | ??????????# ??# # " " " ????# """ | | ??????????# ????# u #? ???# """ | | ??????????# ??????# #? !???# | | ??????????? ????????# #################+### | | ??????????? ??????????# | | ???????????????????????# ^ | | ???????????????????????# ^ | | ???????????????????????# ""T"" | | ???????????????????????# g""""" | | ???????????????????????# ##########+### | | ??????????????????###### #??????# | | ??????????????? #??????# | | ??????????????? ^ #??????#"" " | | ???????????????""" """ """ """ """ #??????#"" " | | ????????????????"" """ """ """ """ #??????#"T " | | ????????????????"" """ """ """ """ #??????#"" | | ??????????????? #??????#"" | | ???????????????????""" """ ######## = | | ????????????????????"" """ // ####### | +----------------------------------------------------+ Best States ------------- Heat Dissipation 34 Coolant Potential 65 Energy Generation 15 Energy Capacity 1600 Matter Stores 300 Matter Capacity 300 Sight Range 16 Robot Scan Range 15 Terrain Scan Density 110 Additional Mass Support 9 Armor Coverage 225 Weapon Cycling 15 Evasion (%) 62 Targeting Accuracy 6 Melee Accuracy 5 Defensive Hacking 20 Item Schematics ----------------- None Robot Schematics ------------------ None Fabricated ------------ Nothing Repaired ---------- Nothing Studied --------- Flight Unit | -8/Materials | Hacked Lgt. Nuclear Core | -8/Materials | Hacked Carbon-fiber Leg | -8/Materials | Hacked Alien Tech Used ----------------- None Achievements -------------- None Challenges ------------ None Game ------ Seed LaserSuperquantumSpoofer Manual? 0 Play Time 00:35:55 Cumulative 107.8 hours Start 2026.09.12 @ 18:13:05 End 2026.09.13 @ 12:04:42 Sessions 4 Manual Loads 0 Difficulty Rogue Special Mode None Game No. 120 Rogue 120 Adventurer 0 Explorer 0 Win Type - Total 0 Types 0/0/0/0/0/0/0/0/0/0 Lore% 45 Gallery% 51 Achievement% 42 Wizard Run 0 Options --------- Layout 1 ASCII 0 Keyboard 0 Movement Mouse Keybinds 0 Fullscreen 2 Font 24/Smallcaps Map View 50x35 Zoom Use 0% Tactical HUD 1 Map Filters NONE Filters NONE Steam 1 RUN: ae4a4d45-dda7-4d77-89a2-66c8263343d6